[Event "2026 European Womens Championship"]
[Site "Batumi, GE"]
[Date "2026.05.30"]
[Round "6"]
[White "Khachatryan, Anna"]
[Black "Tsolakidou, Stavroula"]
[Result "1/2-1/2"]
[Board "86"]
[TimeControl "5400+30"]
[WhiteFideId "13310780"]
[BlackFideId "4264312"]
[WhiteElo "2154"]
[BlackElo "2455"]
[WhiteTitle "WFM"]
[BlackTitle "IM"]
[WhiteClock "0:01:00"]
[BlackClock "0:01:25"]
[Variant "Standard"]

1. c4 {[%clk 1:30:57]}  e5 {[%clk 1:27:33]} 2. Nc3 {[%clk 1:31:06]}  Bb4 {[%clk 1:26:28]} 3. Nd5 {[%clk 1:30:44]}  Be7 {[%clk 1:26:34]}
4. e3 {[%clk 1:25:53]}  Nf6 {[%clk 1:20:59]} 5. Nxe7 {[%clk 1:22:45]}  Qxe7 {[%clk 1:21:24]} 6. Ne2 {[%clk 1:13:42]}  d5 {[%clk 1:16:04]}
7. cxd5 {[%clk 1:13:17]}  Nxd5 {[%clk 1:15:35]} 8. Nc3 {[%clk 1:13:33]}  Nb6 {[%clk 1:11:41]} 9. Be2 {[%clk 1:05:39]}  O-O {[%clk 1:12:04]}
10. O-O {[%clk 1:05:31]}  Nc6 {[%clk 1:11:35]} 11. d4 {[%clk 0:57:10]}  exd4 {[%clk 1:04:36]} 12. exd4 {[%clk 0:57:36]}  Rd8 {[%clk 1:04:59]}
13. Be3 {[%clk 0:56:57]}  Be6 {[%clk 0:52:13]} 14. Re1 {[%clk 0:44:26]}  Qb4 {[%clk 0:42:17]} 15. Nb5 {[%clk 0:37:06]}  Rd7 {[%clk 0:39:46]}
16. Bd2 {[%clk 0:33:03]}  Qf8 {[%clk 0:35:28]} 17. Bf3 {[%clk 0:15:52]}  Nxd4 {[%clk 0:33:45]} 18. Nxd4 {[%clk 0:16:18]}  Rxd4 {[%clk 0:34:09]}
19. Qc1 {[%clk 0:11:36]}  Rc4 {[%clk 0:30:17]} 20. Qb1 {[%clk 0:07:37]}  c6 {[%clk 0:27:36]} 21. b3 {[%clk 0:03:05]}  Rh4 {[%clk 0:23:44]}
22. Qb2 {[%clk 0:00:59]}  Qd6 {[%clk 0:12:14]} 23. g3 {[%clk 0:01:25]}  Rh3 {[%clk 0:10:25]} 24. Bf4 {[%clk 0:01:03]}  Qd3 {[%clk 0:08:18]}
25. Re3 {[%clk 0:00:48]}  Qg6 {[%clk 0:07:55]} 26. Re5 {[%clk 0:00:43]}  Qf6 {[%clk 0:06:48]} 27. Rb1 {[%clk 0:00:34]}  Nd5 {[%clk 0:04:45]}
28. Bxd5 {[%clk 0:00:45]}  Bxd5 {[%clk 0:03:02]} 29. Qe2 {[%clk 0:00:49]}  Rf8 {[%clk 0:01:22]} 30. Re1 {[%clk 0:00:48]}  Qg6 {[%clk 0:01:18]}
31. Rg5 {[%clk 0:00:36]}  Qe6 {[%clk 0:01:18]} 32. Re5 {[%clk 0:00:42]}  Qd7 {[%clk 0:01:13]} 33. Re7 {[%clk 0:00:45]}  Qf5 {[%clk 0:01:16]}
34. Re5 {[%clk 0:01:00]}  Qd7 {[%clk 0:01:25]} 1/2-1/2

[Event "2026 European Womens Championship"]
[Site "Batumi, GE"]
[Date "2026.05.30"]
[Round "6"]
[White "Skvortsova, Alena"]
[Black "Brunello, Marina"]
[Result "0-1"]
[Board "87"]
[TimeControl "5400+30"]
[WhiteFideId "24166251"]
[BlackFideId "822590"]
[WhiteElo "2135"]
[BlackElo "2346"]
[WhiteTitle "WFM"]
[BlackTitle "IM"]
[WhiteClock "0:01:27"]
[BlackClock "0:24:59"]
[Variant "Standard"]

1. e4 {[%clk 1:30:57]}  c6 {[%clk 1:30:53]} 2. d4 {[%clk 1:31:15]}  d5 {[%clk 1:31:19]} 3. e5 {[%clk 1:31:40]}  Bf5 {[%clk 1:31:44]}
4. h4 {[%clk 1:31:57]}  h5 {[%clk 1:32:05]} 5. Bd3 {[%clk 1:32:18]}  Bxd3 {[%clk 1:32:03]} 6. Qxd3 {[%clk 1:32:42]}  Qa5+ {[%clk 1:32:12]}
7. Nd2 {[%clk 1:32:58]}  e6 {[%clk 1:32:33]} 8. Ngf3 {[%clk 1:33:15]}  Nh6 {[%clk 1:32:17]} 9. O-O {[%clk 1:33:19]}  Nf5 {[%clk 1:32:43]}
10. Nb3 {[%clk 1:33:36]}  Qa6 {[%clk 1:32:47]} 11. Qc3 {[%clk 1:33:44]}  Qb6 {[%clk 1:30:37]} 12. Bg5 {[%clk 1:32:40]}  a5 {[%clk 1:27:03]}
13. a4 {[%clk 1:25:27]}  Nd7 {[%clk 1:24:08]} 14. Qd2 {[%clk 1:17:11]}  c5 {[%clk 1:11:21]} 15. Rab1 {[%clk 1:11:29]}  cxd4 {[%clk 1:05:47]}
16. Nbxd4 {[%clk 0:50:22]}  Nxd4 {[%clk 1:04:34]} 17. Nxd4 {[%clk 0:50:45]}  Nxe5 {[%clk 1:04:45]} 18. Nb5 {[%clk 0:34:52]}  Bc5 {[%clk 0:44:09]}
19. Qf4 {[%clk 0:23:50]}  f6 {[%clk 0:42:51]} 20. Qg3 {[%clk 0:16:44]}  O-O {[%clk 0:39:03]} 21. Bf4 {[%clk 0:16:37]}  Ng4 {[%clk 0:38:03]}
22. Rbe1 {[%clk 0:13:04]}  e5 {[%clk 0:37:44]} 23. Be3 {[%clk 0:12:00]}  Bxe3 {[%clk 0:36:06]} 24. fxe3 {[%clk 0:12:25]}  Rac8 {[%clk 0:35:41]}
25. Re2 {[%clk 0:07:58]}  Rfd8 {[%clk 0:32:02]} 26. Kh1 {[%clk 0:07:28]}  Rc4 {[%clk 0:31:34]} 27. b3 {[%clk 0:07:44]}  Re4 {[%clk 0:30:41]}
28. Rfe1 {[%clk 0:07:37]}  Qc5 {[%clk 0:25:12]} 29. c4 {[%clk 0:04:21]}  Nh6 {[%clk 0:25:33]} 30. cxd5 {[%clk 0:03:04]}  Rg4 {[%clk 0:24:33]}
31. Qf2 {[%clk 0:02:21]}  Qxd5 {[%clk 0:24:52]} 32. e4 {[%clk 0:02:42]}  Qxb3 {[%clk 0:24:41]} 33. Qb6 {[%clk 0:02:03]}  Rd1 {[%clk 0:24:45]}
34. Qe3 {[%clk 0:00:53]}  Rxe1+ {[%clk 0:24:26]} 35. Rxe1 {[%clk 0:01:18]}  Rxh4+ {[%clk 0:24:40]} 36. Kg1 {[%clk 0:01:42]}  Qxa4 {[%clk 0:24:59]}
37. Qd2 {[%clk 0:01:27]} 0-1

[Event "2026 European Womens Championship"]
[Site "Batumi, GE"]
[Date "2026.05.30"]
[Round "6"]
[White "Nomin-Erdene, Davaademberel"]
[Black "Ptacnikova, Lenka"]
[Result "1-0"]
[Board "88"]
[TimeControl "5400+30"]
[WhiteFideId "4900782"]
[BlackFideId "305650"]
[WhiteElo "2328"]
[BlackElo "2126"]
[WhiteTitle "IM"]
[BlackTitle "WGM"]
[WhiteClock "0:03:21"]
[BlackClock "0:14:07"]
[Variant "Standard"]

1. e4 {[%clk 1:30:56]}  c5 {[%clk 1:30:56]} 2. Nf3 {[%clk 1:31:21]}  e6 {[%clk 1:31:12]} 3. d4 {[%clk 1:31:43]}  cxd4 {[%clk 1:31:38]}
4. Nxd4 {[%clk 1:32:09]}  Nc6 {[%clk 1:31:54]} 5. Nc3 {[%clk 1:32:16]}  Qc7 {[%clk 1:32:18]} 6. Be3 {[%clk 1:32:40]}  a6 {[%clk 1:32:39]}
7. Qf3 {[%clk 1:32:48]}  Nf6 {[%clk 1:32:59]} 8. O-O-O {[%clk 1:33:10]}  Ne5 {[%clk 1:33:13]} 9. Qg3 {[%clk 1:33:11]}  b5 {[%clk 1:33:21]}
10. a3 {[%clk 1:33:06]}  Bb7 {[%clk 1:26:48]} 11. Bxb5 {[%clk 1:32:39]}  Rc8 {[%clk 1:26:33]} 12. Ba4 {[%clk 1:33:02]}  Nxe4 {[%clk 1:24:01]}
13. Nxe4 {[%clk 1:33:11]}  Bxe4 {[%clk 1:24:25]} 14. Bf4 {[%clk 1:33:07]}  Qa5 {[%clk 1:23:35]} 15. Bxe5 {[%clk 1:33:12]}  Qxa4 {[%clk 1:23:51]}
16. Rd2 {[%clk 1:33:22]}  Bc5 {[%clk 1:08:05]} 17. Qxg7 {[%clk 1:21:50]}  Rf8 {[%clk 1:07:58]} 18. Re1 {[%clk 1:01:58]}  Bg6 {[%clk 0:54:22]}
19. Ree2 {[%clk 0:58:00]}  Bxa3 {[%clk 0:51:15]} 20. bxa3 {[%clk 0:52:08]}  Qxa3+ {[%clk 0:51:25]} 21. Kb1 {[%clk 0:52:33]}  Qb4+ {[%clk 0:51:29]}
22. Ka2 {[%clk 0:46:47]}  Qa5+ {[%clk 0:51:25]} 23. Kb2 {[%clk 0:47:00]}  Qc3+ {[%clk 0:51:42]} 24. Kb1 {[%clk 0:47:26]}  Qb4+ {[%clk 0:51:58]}
25. Nb3 {[%clk 0:43:42]}  Qxb3+ {[%clk 0:52:21]} 26. Kc1 {[%clk 0:42:58]}  Qa3+ {[%clk 0:51:30]} 27. Bb2 {[%clk 0:40:09]}  Qa4 {[%clk 0:48:47]}
28. Be5 {[%clk 0:29:17]}  Qa3+ {[%clk 0:47:36]} 29. Kd1 {[%clk 0:24:57]}  Qa2 {[%clk 0:46:20]} 30. Ke1 {[%clk 0:24:56]}  Bxc2 {[%clk 0:42:14]}
31. f3 {[%clk 0:24:40]}  Qb1+ {[%clk 0:41:58]} 32. Kf2 {[%clk 0:25:05]}  Rc6 {[%clk 0:35:43]} 33. Bf4 {[%clk 0:20:32]}  Qb4 {[%clk 0:27:29]}
34. Bh6 {[%clk 0:16:57]}  Bb3 {[%clk 0:25:20]} 35. Rb2 {[%clk 0:16:29]}  Rc3 {[%clk 0:24:27]} 36. Re4 {[%clk 0:07:56]}  Qc5+ {[%clk 0:23:29]}
37. Re3 {[%clk 0:07:40]}  Rc2+ {[%clk 0:18:36]} 38. Rxc2 {[%clk 0:08:05]}  Bxc2 {[%clk 0:18:29]} 39. Kg3 {[%clk 0:03:56]}  f6 {[%clk 0:16:13]}
40. Qxf8+ {[%clk 0:00:45]}  Qxf8 {[%clk 0:16:38]} 41. Bxf8 {[%clk 0:01:13]}  Kxf8 {[%clk 0:17:01]} 42. Ra3 {[%clk 0:01:39]}  d5 {[%clk 0:16:29]}
43. Rxa6 {[%clk 0:01:35]}  Ke7 {[%clk 0:16:41]} 44. Ra7+ {[%clk 0:29:14]}  Kd6 {[%clk 0:45:52]} 45. Rf7 {[%clk 0:29:02]}  d4 {[%clk 0:45:22]}
46. Kf2 {[%clk 0:29:04]}  Ke5 {[%clk 0:43:11]} 47. h4 {[%clk 0:26:49]}  Bg6 {[%clk 0:42:14]} 48. Rd7 {[%clk 0:23:44]}  Bc2 {[%clk 0:41:52]}
49. Ke2 {[%clk 0:18:14]}  h5 {[%clk 0:36:33]} 50. Rd8 {[%clk 0:10:14]}  Bg6 {[%clk 0:35:36]} 51. g4 {[%clk 0:10:10]}  f5 {[%clk 0:31:33]}
52. g5 {[%clk 0:09:18]}  f4 {[%clk 0:30:35]} 53. Rg8 {[%clk 0:08:01]}  Bf7 {[%clk 0:30:30]} 54. Rf8 {[%clk 0:08:05]}  Bg6 {[%clk 0:30:47]}
55. Kd2 {[%clk 0:07:54]}  Bb1 {[%clk 0:29:47]} 56. Kc1 {[%clk 0:08:07]}  Bg6 {[%clk 0:28:37]} 57. Kb2 {[%clk 0:08:34]}  Bd3 {[%clk 0:25:57]}
58. Kb3 {[%clk 0:08:54]}  Bb1 {[%clk 0:25:18]} 59. Kb4 {[%clk 0:09:04]}  Bd3 {[%clk 0:24:50]} 60. Kc5 {[%clk 0:08:18]}  Bc2 {[%clk 0:24:39]}
61. Rd8 {[%clk 0:04:15]}  d3 {[%clk 0:24:32]} 62. Kb4 {[%clk 0:02:23]}  Kf5 {[%clk 0:24:36]} 63. Rf8+ {[%clk 0:02:28]}  Kg6 {[%clk 0:24:11]}
64. Kc3 {[%clk 0:02:42]}  e5 {[%clk 0:24:29]} 65. Rf6+ {[%clk 0:02:57]}  Kg7 {[%clk 0:24:54]} 66. Kd2 {[%clk 0:02:17]}  Bb3 {[%clk 0:23:52]}
67. Kxd3 {[%clk 0:01:26]}  Bd5 {[%clk 0:24:02]} 68. Ke2 {[%clk 0:01:43]}  e4 {[%clk 0:22:32]} 69. fxe4 {[%clk 0:01:35]}  Bxe4 {[%clk 0:22:57]}
70. Rxf4 {[%clk 0:02:00]}  Bc2 {[%clk 0:21:16]} 71. Kd2 {[%clk 0:00:54]}  Bg6 {[%clk 0:20:47]} 72. Rb4 {[%clk 0:00:44]}  Bf5 {[%clk 0:20:31]}
73. Ke3 {[%clk 0:00:45]}  Bc2 {[%clk 0:20:43]} 74. Rd4 {[%clk 0:00:51]}  Bf5 {[%clk 0:20:55]} 75. Kf4 {[%clk 0:01:05]}  Bc2 {[%clk 0:21:18]}
76. Rd6 {[%clk 0:01:24]}  Bb3 {[%clk 0:20:00]} 77. Ke5 {[%clk 0:00:47]}  Bc2 {[%clk 0:20:18]} 78. Ke6 {[%clk 0:00:41]}  Bb3+ {[%clk 0:18:49]}
79. Ke7 {[%clk 0:01:04]}  Bc2 {[%clk 0:19:09]} 80. Rc6 {[%clk 0:00:35]}  Be4 {[%clk 0:19:00]} 81. Rc7 {[%clk 0:00:45]}  Bf5 {[%clk 0:18:28]}
82. Kd6+ {[%clk 0:00:34]}  Kg6 {[%clk 0:18:10]} 83. Re7 {[%clk 0:00:57]}  Bg4 {[%clk 0:16:51]} 84. Kc7 {[%clk 0:01:00]}  Bd1 {[%clk 0:16:55]}
85. Kd8 {[%clk 0:01:19]}  Ba4 {[%clk 0:17:13]} 86. Rb7 {[%clk 0:01:35]}  Bc2 {[%clk 0:15:56]} 87. Ke8 {[%clk 0:01:56]}  Be4 {[%clk 0:15:46]}
88. Re7 {[%clk 0:01:53]}  Bd5 {[%clk 0:15:16]} 89. Kf8 {[%clk 0:02:18]}  Bc4 {[%clk 0:14:06]} 90. Rd7 {[%clk 0:02:17]}  Bb3 {[%clk 0:14:04]}
91. Rd6+ {[%clk 0:02:36]}  Kf5 {[%clk 0:13:55]} 92. g6 {[%clk 0:02:57]}  Kg4 {[%clk 0:14:07]} 93. Rd4+ {[%clk 0:03:21]} 1-0

[Event "2026 European Womens Championship"]
[Site "Batumi, GE"]
[Date "2026.05.30"]
[Round "6"]
[White "Urh, Zala"]
[Black "Deak-Sala, Emilia"]
[Result "0-1"]
[Board "89"]
[TimeControl "5400+30"]
[WhiteFideId "14611481"]
[BlackFideId "795615"]
[WhiteElo "2263"]
[BlackElo "2086"]
[WhiteTitle "WIM"]
[BlackTitle "WFM"]
[WhiteClock "0:00:34"]
[BlackClock "0:07:50"]
[Variant "Standard"]

1. d4 {[%clk 1:30:58]}  Nf6 {[%clk 1:28:47]} 2. c4 {[%clk 1:31:23]}  g6 {[%clk 1:29:13]} 3. Nc3 {[%clk 1:31:46]}  Bg7 {[%clk 1:29:39]}
4. e4 {[%clk 1:32:10]}  d6 {[%clk 1:30:00]} 5. Be2 {[%clk 1:32:22]}  O-O {[%clk 1:29:49]} 6. Bg5 {[%clk 1:32:45]}  Nc6 {[%clk 1:28:23]}
7. d5 {[%clk 1:29:53]}  Ne5 {[%clk 1:27:45]} 8. Nf3 {[%clk 1:29:54]}  h6 {[%clk 1:28:09]} 9. Bd2 {[%clk 1:18:18]}  Nxf3+ {[%clk 1:28:17]}
10. Bxf3 {[%clk 1:18:43]}  c6 {[%clk 1:28:26]} 11. O-O {[%clk 1:14:09]}  Rb8 {[%clk 1:27:44]} 12. a4 {[%clk 1:02:10]}  e5 {[%clk 1:19:57]}
13. b4 {[%clk 0:55:14]}  cxd5 {[%clk 1:03:27]} 14. cxd5 {[%clk 0:53:10]}  Ne8 {[%clk 1:03:48]} 15. Be3 {[%clk 0:45:12]}  Ra8 {[%clk 0:59:27]}
16. Qd2 {[%clk 0:40:27]}  Kh7 {[%clk 0:59:31]} 17. Be2 {[%clk 0:40:35]}  f5 {[%clk 0:58:53]} 18. f3 {[%clk 0:39:31]}  f4 {[%clk 0:54:58]}
19. Bf2 {[%clk 0:39:45]}  h5 {[%clk 0:55:05]} 20. Nb5 {[%clk 0:36:35]}  Qg5 {[%clk 0:44:16]} 21. Rfc1 {[%clk 0:32:19]}  a6 {[%clk 0:32:58]}
22. Nc7 {[%clk 0:31:28]}  Bh3 {[%clk 0:29:33]} 23. Bf1 {[%clk 0:31:08]}  Rc8 {[%clk 0:29:37]} 24. Nxe8 {[%clk 0:15:18]}  Rfxe8 {[%clk 0:29:58]}
25. Bb6 {[%clk 0:15:36]}  Bd7 {[%clk 0:19:37]} 26. b5 {[%clk 0:13:30]}  axb5 {[%clk 0:19:10]} 27. axb5 {[%clk 0:13:56]}  Qe7 {[%clk 0:19:21]}
28. Bc7 {[%clk 0:07:37]}  g5 {[%clk 0:13:11]} 29. b6 {[%clk 0:08:04]}  g4 {[%clk 0:13:04]} 30. Be2 {[%clk 0:08:02]}  Ra8 {[%clk 0:12:11]}
31. Ra7 {[%clk 0:06:39]}  gxf3 {[%clk 0:12:05]} 32. Bxf3 {[%clk 0:06:55]}  Bb5 {[%clk 0:09:21]} 33. Rxb7 {[%clk 0:06:17]}  Ra4 {[%clk 0:09:35]}
34. Ra7 {[%clk 0:05:55]}  Rd4 {[%clk 0:08:30]} 35. Qb2 {[%clk 0:04:57]}  Bc4 {[%clk 0:07:24]} 36. Ra4 {[%clk 0:02:41]}  Bxd5 {[%clk 0:06:58]}
37. Rxd4 {[%clk 0:01:35]}  exd4 {[%clk 0:07:24]} 38. exd5 {[%clk 0:01:02]}  Qe3+ {[%clk 0:07:21]} 39. Kf1 {[%clk 0:01:28]}  d3 {[%clk 0:07:48]}
40. Qb1 {[%clk 0:00:34]}  Bd4 {[%clk 0:07:50]} 0-1

[Event "2026 European Womens Championship"]
[Site "Batumi, GE"]
[Date "2026.05.30"]
[Round "6"]
[White "Radeva, Viktoria"]
[Black "Liashkevich, Lizaveta"]
[Result "1-0"]
[Board "90"]
[TimeControl "5400+30"]
[WhiteFideId "2915405"]
[BlackFideId "13518658"]
[WhiteElo "2242"]
[BlackElo "2079"]
[WhiteTitle "WGM"]
[BlackTitle "WFM"]
[WhiteClock "0:31:03"]
[BlackClock "0:01:24"]
[Variant "Standard"]

1. e4 {[%clk 1:30:56]}  e6 {[%clk 1:30:45]} 2. d4 {[%clk 1:31:09]}  d5 {[%clk 1:31:11]} 3. e5 {[%clk 1:31:34]}  c5 {[%clk 1:31:37]}
4. c3 {[%clk 1:32:00]}  Nc6 {[%clk 1:32:02]} 5. Nf3 {[%clk 1:32:27]}  Qb6 {[%clk 1:32:12]} 6. Bd3 {[%clk 1:32:03]}  cxd4 {[%clk 1:31:14]}
7. O-O {[%clk 1:32:25]}  Bd7 {[%clk 1:31:18]} 8. Re1 {[%clk 1:32:39]}  Nge7 {[%clk 1:19:22]} 9. h4 {[%clk 1:32:41]}  Rc8 {[%clk 1:19:09]}
10. Nbd2 {[%clk 1:32:28]}  dxc3 {[%clk 1:18:01]} 11. bxc3 {[%clk 1:32:45]}  Na5 {[%clk 1:16:02]} 12. Rb1 {[%clk 1:32:51]}  Qc7 {[%clk 1:13:45]}
13. Ba3 {[%clk 1:32:09]}  Qxc3 {[%clk 0:41:10]} 14. Nb3 {[%clk 1:31:05]}  Nxb3 {[%clk 0:40:59]} 15. Rxb3 {[%clk 1:25:18]}  Qa5 {[%clk 0:37:32]}
16. Qb1 {[%clk 1:12:40]}  Nc6 {[%clk 0:19:34]} 17. Bxf8 {[%clk 1:11:51]}  Kxf8 {[%clk 0:19:03]} 18. Rxb7 {[%clk 1:09:51]}  Ke7 {[%clk 0:12:23]}
19. Qc1 {[%clk 0:59:19]}  h6 {[%clk 0:09:51]} 20. Rb5 {[%clk 0:56:55]}  Qd8 {[%clk 0:09:14]} 21. Qa3+ {[%clk 0:52:05]}  Ke8 {[%clk 0:09:39]}
22. Rc1 {[%clk 0:43:46]}  g5 {[%clk 0:05:27]} 23. Qb2 {[%clk 0:37:06]}  g4 {[%clk 0:04:36]} 24. Nd4 {[%clk 0:32:17]}  Nxd4 {[%clk 0:04:35]}
25. Rxc8 {[%clk 0:32:39]}  Bxc8 {[%clk 0:03:11]} 26. Qxd4 {[%clk 0:32:51]}  Ba6 {[%clk 0:01:29]} 27. Qb4 {[%clk 0:32:18]}  Bc8 {[%clk 0:01:06]}
28. Rb8 {[%clk 0:31:34]}  Qc7 {[%clk 0:01:24]} 29. Rxc8+ {[%clk 0:31:03]} 1-0

[Event "2026 European Womens Championship"]
[Site "Batumi, GE"]
[Date "2026.05.30"]
[Round "6"]
[White "Szczotka, Klara"]
[Black "Tsiganova, Monika"]
[Result "1/2-1/2"]
[Board "91"]
[TimeControl "5400+30"]
[WhiteFideId "21858845"]
[BlackFideId "4500199"]
[WhiteElo "2241"]
[BlackElo "2039"]
[WhiteTitle "WFM"]
[BlackTitle "WIM"]
[WhiteClock "0:06:53"]
[BlackClock "0:19:54"]
[Variant "Standard"]

1. d4 {[%clk 1:30:56]}  Nf6 {[%clk 1:30:43]} 2. c4 {[%clk 1:31:22]}  e6 {[%clk 1:31:02]} 3. Nc3 {[%clk 1:31:44]}  Bb4 {[%clk 1:31:01]}
4. e3 {[%clk 1:31:40]}  O-O {[%clk 1:29:41]} 5. Bd2 {[%clk 1:31:51]}  d5 {[%clk 1:28:35]} 6. Nf3 {[%clk 1:31:06]}  c6 {[%clk 1:26:16]}
7. Bd3 {[%clk 1:29:32]}  Nbd7 {[%clk 1:24:30]} 8. O-O {[%clk 1:28:04]}  b6 {[%clk 1:16:47]} 9. cxd5 {[%clk 1:23:54]}  exd5 {[%clk 1:09:57]}
10. Qa4 {[%clk 1:14:49]}  Bxc3 {[%clk 1:09:14]} 11. Bxc3 {[%clk 1:13:21]}  Bb7 {[%clk 1:08:58]} 12. Ne5 {[%clk 1:11:43]}  Qc7 {[%clk 0:51:08]}
13. f4 {[%clk 1:00:42]}  a5 {[%clk 0:40:01]} 14. Rac1 {[%clk 0:52:43]}  Qd6 {[%clk 0:37:08]} 15. Be1 {[%clk 0:51:09]}  Rfc8 {[%clk 0:37:03]}
16. Bg3 {[%clk 0:47:56]}  Ne4 {[%clk 0:21:51]} 17. Bxe4 {[%clk 0:42:27]}  dxe4 {[%clk 0:22:12]} 18. Qb3 {[%clk 0:33:46]}  Nxe5 {[%clk 0:20:21]}
19. fxe5 {[%clk 0:31:50]}  Qe6 {[%clk 0:20:00]} 20. Qxb6 {[%clk 0:20:37]}  Ba6 {[%clk 0:20:15]} 21. Rfd1 {[%clk 0:18:44]}  Bc4 {[%clk 0:19:58]}
22. b3 {[%clk 0:16:42]}  Bd5 {[%clk 0:20:16]} 23. Qc5 {[%clk 0:15:00]}  a4 {[%clk 0:18:10]} 24. bxa4 {[%clk 0:14:39]}  Rxa4 {[%clk 0:18:25]}
25. a3 {[%clk 0:14:22]}  Rb8 {[%clk 0:18:11]} 26. Rb1 {[%clk 0:12:58]}  Rba8 {[%clk 0:17:26]} 27. Rdc1 {[%clk 0:11:45]}  h5 {[%clk 0:14:16]}
28. Rc3 {[%clk 0:08:27]}  Qg4 {[%clk 0:12:29]} 29. Bf4 {[%clk 0:03:46]}  Qe2 {[%clk 0:11:25]} 30. e6 {[%clk 0:00:54]}  Bxe6 {[%clk 0:11:17]}
31. Qxc6 {[%clk 0:00:40]}  R4a5 {[%clk 0:07:02]} 32. Rf1 {[%clk 0:00:33]}  Qa2 {[%clk 0:06:44]} 33. Bd6 {[%clk 0:00:35]}  Bd5 {[%clk 0:06:18]}
34. Qd7 {[%clk 0:00:36]}  Be6 {[%clk 0:06:13]} 35. Qe7 {[%clk 0:00:46]}  Qe2 {[%clk 0:05:35]} 36. Qh4 {[%clk 0:00:42]}  Bc4 {[%clk 0:05:27]}
37. Re1 {[%clk 0:00:46]}  Qa2 {[%clk 0:05:48]} 38. Qxe4 {[%clk 0:00:33]}  Qd2 {[%clk 0:06:08]} 39. Rec1 {[%clk 0:00:34]}  f5 {[%clk 0:03:17]}
40. Qc2 {[%clk 0:00:41]}  Qxc2 {[%clk 0:03:40]} 41. R1xc2 {[%clk 0:00:57]}  Bd5 {[%clk 0:03:48]} 42. Rc7 {[%clk 0:29:45]}  R5a7 {[%clk 0:32:31]}
43. Be5 {[%clk 0:27:47]}  Bf7 {[%clk 0:31:58]} 44. Rxa7 {[%clk 0:22:07]}  Rxa7 {[%clk 0:32:21]} 45. Rc8+ {[%clk 0:22:34]}  Kh7 {[%clk 0:32:40]}
46. Rc7 {[%clk 0:22:48]}  Rxc7 {[%clk 0:32:50]} 47. Bxc7 {[%clk 0:23:15]}  g5 {[%clk 0:31:22]} 48. a4 {[%clk 0:22:51]}  Bd5 {[%clk 0:30:58]}
49. g3 {[%clk 0:23:04]}  Kg6 {[%clk 0:31:20]} 50. Kf2 {[%clk 0:23:12]}  Kf7 {[%clk 0:31:10]} 51. h4 {[%clk 0:19:56]}  g4 {[%clk 0:31:08]}
52. Ke2 {[%clk 0:17:47]}  Ke6 {[%clk 0:31:29]} 53. Kd3 {[%clk 0:16:00]}  Kd7 {[%clk 0:31:38]} 54. Bf4 {[%clk 0:15:11]}  Bc6 {[%clk 0:28:24]}
55. d5 {[%clk 0:13:55]}  Bxa4 {[%clk 0:27:14]} 56. Kd4 {[%clk 0:14:14]}  Ke7 {[%clk 0:26:50]} 57. Ke5 {[%clk 0:12:46]}  Bd7 {[%clk 0:26:49]}
58. Bg5+ {[%clk 0:12:48]}  Kf7 {[%clk 0:26:55]} 59. Kd6 {[%clk 0:10:33]}  Ba4 {[%clk 0:23:36]} 60. Bd8 {[%clk 0:09:11]}  Ke8 {[%clk 0:23:00]}
61. Ba5 {[%clk 0:07:29]}  Bd7 {[%clk 0:22:42]} 62. Bb4 {[%clk 0:05:11]}  Bc8 {[%clk 0:22:49]} 63. Bc3 {[%clk 0:03:51]}  Bd7 {[%clk 0:22:40]}
64. Be5 {[%clk 0:03:01]}  Bc8 {[%clk 0:22:53]} 65. Kc7 {[%clk 0:02:08]}  Bd7 {[%clk 0:23:13]} 66. Bf6 {[%clk 0:01:59]}  Ba4 {[%clk 0:23:23]}
67. Kd6 {[%clk 0:02:25]}  Bd7 {[%clk 0:23:30]} 68. Be7 {[%clk 0:02:38]}  Bc8 {[%clk 0:23:39]} 69. Bg5 {[%clk 0:02:45]}  Bd7 {[%clk 0:23:58]}
70. Ke5 {[%clk 0:03:07]}  Kf7 {[%clk 0:24:22]} 71. e4 {[%clk 0:03:23]}  fxe4 {[%clk 0:24:02]} 72. Kxe4 {[%clk 0:03:49]}  Bc8 {[%clk 0:20:11]}
73. Ke5 {[%clk 0:04:13]}  Bd7 {[%clk 0:19:52]} 74. Bd8 {[%clk 0:04:29]}  Ke8 {[%clk 0:19:47]} 75. Ba5 {[%clk 0:04:34]}  Kf7 {[%clk 0:20:04]}
76. Kd6 {[%clk 0:04:58]}  Ke8 {[%clk 0:20:12]} 77. Bd2 {[%clk 0:05:10]}  Bc8 {[%clk 0:20:23]} 78. Ke5 {[%clk 0:05:30]}  Kf7 {[%clk 0:20:40]}
79. Bc3 {[%clk 0:05:52]}  Bd7 {[%clk 0:20:57]} 80. Kf4 {[%clk 0:06:18]}  Kg6 {[%clk 0:20:55]} 81. Be5 {[%clk 0:06:38]}  Bc8 {[%clk 0:19:54]}
82. Bc3 {[%clk 0:06:53]} 1/2-1/2

[Event "2026 European Womens Championship"]
[Site "Batumi, GE"]
[Date "2026.05.30"]
[Round "6"]
[White "Peglau, Charis"]
[Black "Golsta, Madara"]
[Result "1/2-1/2"]
[Board "92"]
[TimeControl "5400+30"]
[WhiteFideId "16219996"]
[BlackFideId "11607386"]
[WhiteElo "2238"]
[BlackElo "2023"]
[WhiteTitle "WFM"]
[WhiteClock "0:31:44"]
[BlackClock "0:31:42"]
[Variant "Standard"]

1. Nf3 {[%clk 1:30:57]}  c5 {[%clk 1:30:40]} 2. g3 {[%clk 1:31:12]}  g6 {[%clk 1:30:34]} 3. Bg2 {[%clk 1:31:16]}  Bg7 {[%clk 1:30:48]}
4. c4 {[%clk 1:31:00]}  Nc6 {[%clk 1:30:04]} 5. Nc3 {[%clk 1:31:07]}  Nf6 {[%clk 1:29:37]} 6. d4 {[%clk 1:31:07]}  cxd4 {[%clk 1:29:24]}
7. Nxd4 {[%clk 1:31:32]}  O-O {[%clk 1:29:15]} 8. O-O {[%clk 1:31:40]}  Qb6 {[%clk 1:23:49]} 9. Nb3 {[%clk 1:28:10]}  d6 {[%clk 1:22:51]}
10. Be3 {[%clk 1:18:06]}  Qc7 {[%clk 1:20:44]} 11. Nd5 {[%clk 1:09:45]}  Qd8 {[%clk 1:17:08]} 12. h3 {[%clk 1:06:10]}  Be6 {[%clk 1:12:16]}
13. Rc1 {[%clk 1:05:30]}  Qd7 {[%clk 1:07:41]} 14. Kh2 {[%clk 1:05:10]}  h5 {[%clk 1:06:46]} 15. Qd2 {[%clk 0:55:51]}  Ne5 {[%clk 0:57:10]}
16. Bg5 {[%clk 0:48:56]}  Rac8 {[%clk 0:53:38]} 17. Bxf6 {[%clk 0:45:45]}  exf6 {[%clk 0:52:57]} 18. Qf4 {[%clk 0:42:27]}  f5 {[%clk 0:51:00]}
19. Rfd1 {[%clk 0:41:41]}  Kh7 {[%clk 0:31:42]} 20. c5 {[%clk 0:23:38]}  Bxd5 {[%clk 0:29:45]} 21. Rxd5 {[%clk 0:23:38]}  Qb5 {[%clk 0:28:49]}
22. cxd6 {[%clk 0:15:20]}  Qxe2 {[%clk 0:22:20]} 23. Nd4 {[%clk 0:07:32]}  Qxb2 {[%clk 0:21:18]} 24. Rxc8 {[%clk 0:07:32]}  Rxc8 {[%clk 0:21:42]}
25. Rxe5 {[%clk 0:05:44]}  Rc4 {[%clk 0:21:11]} 26. Rd5 {[%clk 0:04:43]}  Rxd4 {[%clk 0:20:56]} 27. Rxd4 {[%clk 0:03:01]}  Qxd4 {[%clk 0:20:32]}
28. Qxd4 {[%clk 0:03:11]}  Bxd4 {[%clk 0:20:55]} 29. d7 {[%clk 0:03:33]}  Bb6 {[%clk 0:20:51]} 30. Bxb7 {[%clk 0:03:54]}  Kg7 {[%clk 0:19:26]}
31. Kg2 {[%clk 0:04:03]}  Kf6 {[%clk 0:18:41]} 32. Kf3 {[%clk 0:02:58]}  Ke7 {[%clk 0:18:09]} 33. Bc6 {[%clk 0:00:48]}  Kd6 {[%clk 0:13:31]}
34. Ba4 {[%clk 0:00:47]}  Ke7 {[%clk 0:13:28]} 35. Ke2 {[%clk 0:01:05]}  f6 {[%clk 0:12:54]} 36. Bb5 {[%clk 0:00:51]}  Kd8 {[%clk 0:12:38]}
37. a4 {[%clk 0:00:43]}  Ke7 {[%clk 0:12:29]} 38. Kf3 {[%clk 0:00:40]}  Kd8 {[%clk 0:10:01]} 39. Bc4 {[%clk 0:00:41]}  Kxd7 {[%clk 0:09:54]}
40. Bf7 {[%clk 0:01:04]}  g5 {[%clk 0:10:07]} 41. Bxh5 {[%clk 0:01:27]}  Ke7 {[%clk 0:02:44]} 42. Ke2 {[%clk 0:01:21]}  Bc7 {[%clk 0:02:09]}
43. h4 {[%clk 0:29:33]}  f4 {[%clk 0:31:01]} 44. Kf3 {[%clk 0:29:53]}  fxg3 {[%clk 0:30:33]} 45. fxg3 {[%clk 0:30:17]}  gxh4 {[%clk 0:30:41]}
46. gxh4 {[%clk 0:30:43]}  Kf8 {[%clk 0:31:02]} 47. Kg4 {[%clk 0:31:03]}  Kg7 {[%clk 0:31:22]} 48. Be8 {[%clk 0:31:22]}  Bb6 {[%clk 0:31:42]}
49. Kf5 {[%clk 0:31:44]} 1/2-1/2